Cogmind - Beta 13 X2 @@@ ROGUE MODE // 2023.12.24 @ 22:31:31 Player: f3-rnm Result: Self-destructed Performance ------------- Evolutions (4) 2000 Regions Visited (10) 2000 Robots Destroyed (122) 610 Value Destroyed (2801) 2801 Prototype IDs (6) 120 Alien Tech Used (0) 0 Bonus (-63) -63 TOTAL SCORE: 7468 Bonus ------- High Alert Combat Kills 88 Follower Combat Kills 83 Friendly Fire -234 Cogmind --------- Core Integrity 626/850 Matter 292/300 Energy 148/150 System Corruption 6% Temperature Cool (4) Movement Flying (29) Location -6/Lower Caves Parts ------- > --- POWER (1) -------- Micro Nuclear Core > --- PROPULSION (6) --- VTOL Module Improved Flight Unit Improved Flight Unit Nuclear Pulse Thruster > --- UTILITY (6) ------ Medium Storage Unit Transport Network Coupler 0b10 Decoder Chip [Generic] Improved Utility Shielding Hacking Suite Hacking Suite > --- WEAPON (2) ------- (None) > --- INVENTORY (10) --- Micro Nuclear Core Structural Scanner Enhanced Optical Array Makeshift ECM Suite Improved Utility Shielding Hardened Light Armor Plating Improved Hacking Suite Rocket Launcher Great Maul Powered Hammer Peak State ------------ > --- POWER ------------ Light Nuclear Core > --- PROPULSION ------- VTOL Module VTOL Module Improved Flight Unit Improved Flight Unit Nuclear Pulse Thruster Nuclear Pulse Thruster > --- UTILITY ---------- Medium Storage Unit Transport Network Coupler Improved Utility Shielding Light Armor Plating Hacking Suite Hacking Suite > --- WEAPON ----------- Compact Ion Cannon Great Maul > --- INVENTORY -------- Micro Nuclear Core Micro Nuclear Core Structural Scanner Enhanced Optical Array Enhanced Optical Array Reaction Control System Hardened Light Armor Plating Advanced Assault Cannon Rocket Launcher Powered Hammer [Rating: 47] Favorites ----------- Power Cooled Ion Engine Engine Cooled Ion Engine Power Core Light Nuclear Core Propulsion Light Treads Treads Light Treads Flight Unit Improved Flight Unit Utility Transport Network Coupler Device Heat Sink Storage Huge Storage Unit Processor Transport Network Coupler Hackware Hacking Suite Protection Light Armor Plating Weapon Light Assault Rifle Energy Gun Improved Medium Laser Energy Cannon Beam Cannon Ballistic Gun Light Assault Rifle Ballistic Cannon Advanced Assault Cannon Launcher Rocket Launcher Special Weapon Plasma Cutter Impact Weapon Great Maul Build | -11 -10 -9 -9 -8 -7 -6 -6 -6 -6 -6 ------- Run | Yrd Mat Mat Sto Mat Fac Fac Was Fac Low Low Slots Evolved 8 | . . 2 . 2 2 2 . . . . Power . | . . . . . . . . . . . Propulsion 4 | . . 1 . 1 1 1 . . . . Utility 4 | . . 1 . 1 1 1 . . . . Weapon . | . . . . . . . . . . . Parts Attached 102 | 6 8 22 22 21 11 4 . 5 3 . Power 8 | 2 . 1 . 1 1 . . 2 1 . Engine 4 | 2 . 1 . 1 . . . . . . Core 4 | . . . . . 1 . . 2 1 . Reactor . | . . . . . . . . . . . Propulsion 35 | 1 2 9 6 11 4 1 . 1 . . Treads 29 | 1 2 9 6 11 . . . . . . Leg . | . . . . . . . . . . . Wheel . | . . . . . . . . . . . Hover . | . . . . . . . . . . . Flight 6 | . . . . . 4 1 . 1 . . Utility 25 | 1 2 4 4 5 6 2 . . 1 . Device 2 | . . . . 2 . . . . . . Storage 6 | 1 2 . 1 . 2 . . . . . Processor 2 | . . 1 . . . . . . 1 . Hackware 2 | . . . . . 2 . . . . . Protection 13 | . . 3 3 3 2 2 . . . . Artifact . | . . . . . . . . . . . Weapon 34 | 2 4 8 12 4 . 1 . 2 1 . Energy Gun 7 | 1 . . 4 2 . . . . . . Energy Cannon 3 | . 1 1 . . . . . 1 . . Ballistic Gun 12 | 1 2 4 4 1 . . . . . . Ballistic Cannon 1 | . . . . 1 . . . . . . Launcher 6 | . 1 2 1 . . . . 1 1 . Special Weapon 1 | . . . 1 . . . . . . . Impact Weapon 4 | . . 1 2 . . 1 . . . . Slashing Weapon . | . . . . . . . . . . . Piercing Weapon . | . . . . . . . . . . . Special Melee Weapon . | . . . . . . . . . . . Unidentified Prototypes 6 | . . 1 3 . 1 . . 1 . . Parts Lost 14 | . . 4 5 2 . . . . 3 . Power 2 | . . . . 1 . . . . 1 . Propulsion 8 | . . 3 2 1 . . . . 2 . Utility 1 | . . . 1 . . . . . . . Weapon 3 | . . 1 2 . . . . . . . Highest Loss Streak 3 | . . 3 2 1 . . . . 2 . To Critical Strikes . | . . . . . . . . . . . Average Slot Usage (%) 93 | . 86 94 97 97 76 83 86 92 87 73 Engine 9 | . 14 11 11 9 1 . . . . . Treads 26 | . 18 30 31 34 6 . . . . . Flight 3 | . . . . . 22 32 33 39 34 26 Device 1 | . . . . 8 2 . . . . . Storage 12 | . 24 14 11 9 5 6 6 6 6 6 Processor 7 | . . 7 11 9 7 6 6 6 12 13 Hackware 1 | . . . . . 10 13 13 13 13 13 Protection 8 | . . 8 10 9 6 12 13 13 6 6 Energy Gun 5 | . 3 . 9 8 2 . . . . . Energy Cannon 1 | . . 10 . . . . . . . . Ballistic Gun 9 | . 23 11 9 1 . . . . . . Ballistic Cannon 1 | . . . . 6 1 . . . . . Naked Turns . | . . . . . . . . . . . Heaviest Build 120 | 12 33 41 99 120 120 24 24 24 24 18 Greatest Support 83 | 20 40 60 63 83 82 24 24 24 26 20 Greatest Overweight (x) 1 | . 1 1 1 1 1 . . . . . Average Overweight (x) . | . . . . 1 . . . . . . Largest Inventory Capacity 25 | 8 15 15 25 25 25 10 10 10 10 10 Average Capacity 18 | 7 12 15 22 25 13 10 10 10 10 10 Most Carried 25 | 5 15 15 25 25 25 10 10 10 10 10 Average Carried 17 | 3 10 14 20 24 12 9 10 9 9 10 Final Capacity 25 | 8 15 15 25 25 10 10 10 10 10 10 Final Carried 25 | 4 15 14 24 25 10 10 10 10 10 10 Class Distribution -------------------- 50% | Scavenger-Mutant 36% | Mutant 10% | Hacker-Sprinter Dominant Class ---------------- Mutant | -10/Materials Mutant | -9/Materials Scavenger-Mutant | -9/Storage Scavenger-Mutant | -8/Materials Hacker-Sprinter | -7/Factory Hacker-Sprinter | -6/Factory Hacker-Sprinter | -6/Waste Hacker-Sprinter | -6/Factory Hacker-Sprinter | -6/Lower Caves Hacker-Sprinter | -6/Lower Caves Resources | -11 -10 -9 -9 -8 -7 -6 -6 -6 -6 -6 ----------- Run | Yrd Mat Mat Sto Mat Fac Fac Was Fac Low Low Matter Collected 2724 | 180 522 263 846 505 192 40 . 33 143 . Remotely . | . . . . . . . . . . . Salvage Created 4408 | . 659 947 1305 1039 . 235 . 180 43 . Parts 244 | . 32 64 77 56 . 2 . 6 7 . Haulers Intercepted 13 | . 2 3 5 . . 2 . 1 . . Recyclers Shooed 8 | . 2 2 3 . . . . 1 . . Parts Field Recycled . | . . . . . . . . . . . Retrieved Matter . | . . . . . . . . . . . Parts Self-Destructed 3 | . . . . . . . . . 3 . Prevented . | . . . . . . . . . . . Kills | -11 -10 -9 -9 -8 -7 -6 -6 -6 -6 -6 ------- Run | Yrd Mat Mat Sto Mat Fac Fac Was Fac Low Low Combat Hostiles Destroyed 79 | . 9 22 20 20 . . . 4 4 . Guns 35 | . 6 6 15 8 . . . . . . Cannons 23 | . . 11 . 12 . . . . . . AOE 21 | . 3 5 5 . . . . 4 4 . Classes Destroyed 10 | . 7 3 . . . . . . . . Worker 5 | . 1 2 1 . . . . 1 . . Builder 3 | . 1 2 . . . . . . . . Hauler 13 | . 2 3 5 . . 2 . 1 . . Recycler 15 | . 4 4 4 3 . . . . . . Operator 1 | . 1 . . . . . . . . . Watcher 4 | . . 1 . 2 . 1 . . . . Swarmer 33 | . 3 14 7 2 . . . 3 4 . Grunt 27 | . 6 2 6 12 . . . 1 . . Duelist 2 | . . 1 . 1 . . . . . . Sentry 19 | . . 5 9 5 . . . . . . Best Kill Streak 12 | . 7 12 5 3 . 2 . 5 5 . Combat Bots Only 6 | . 4 6 5 3 . . . 4 4 . Max Kills in Single Turn 4 | . 2 3 4 1 . 1 . 2 3 . Gunslinging 1 | . . . 1 . . . . . . . Exploded 4 | . 2 2 4 . . . . 2 3 . Melee . | . . . . . . . . . . . Uniques/NPCs Destroyed . | . . . . . . . . . . . Combat | -11 -10 -9 -9 -8 -7 -6 -6 -6 -6 -6 -------- Run | Yrd Mat Mat Sto Mat Fac Fac Was Fac Low Low Hostile Shots Fired 485 | . 41 133 83 109 1 . . 90 26 2 Missed 190 | . 10 44 22 34 1 . . 65 14 . Damage Taken 3931 | . 374 972 950 1091 . . . 238 266 40 Core 569 | . 76 77 60 132 . . . 61 123 40 Absorbed by Shields . | . . . . . . . . . . . Redirected to Shielding 29 | . . . . . . . . 7 22 . Ignored by Resistances 67 | . . . . 67 . . . . . . Core Remaining (%) 82 | 100 69 . 65 76 100 . . . . . Volleys Fired 304 | . 69 78 77 73 . . . 5 2 . Largest 2 | . 2 2 2 2 . . . 1 1 . Hottest 113 | . 80 83 79 113 . . . 33 33 . Shots Fired 547 | . 134 129 149 128 . . . 5 2 . Gun 408 | . 128 60 146 74 . . . . . . Cannon 117 | . 2 61 . 54 . . . . . . Launcher 20 | . 4 8 1 . . . . 5 2 . Special 2 | . . . 2 . . . . . . . Kinetic 342 | . 126 60 83 73 . . . . . . Thermal 185 | . 4 61 65 55 . . . . . . Explosive 20 | . 4 8 1 . . . . 5 2 . Electromagnetic . | . . . . . . . . . . . Robot Hit Streak 15 | . 15 14 12 13 . . . 2 4 . Robot Miss Streak 5 | . 3 5 3 3 . . . 4 . . Penetration Max . | . . . . . . . . . . . Secondary Targets 5 | . 2 . 2 1 . . . . . . Max Gunslinging Chain 1 | . 1 . 1 1 . . . . . . Shots Hit Robots 372 | . 87 81 103 88 . 5 . 6 2 . Core Hits 191 | . 43 46 46 42 . 1 . 8 5 . Critical Kills . | . . . . . . . . . . . Critical Parts Destroyed 3 | . 1 1 . . . 1 . . . . Critical Strikes 12 | . 1 1 4 5 . 1 . . . . Burn 7 | . . . 4 3 . . . . . . Destroy 2 | . 1 1 . . . . . . . . Blast 2 | . . . . 2 . . . . . . Smash 1 | . . . . . . 1 . . . . Melee Attacks 24 | . . 1 4 . . 6 . 11 2 . Impact 24 | . . 1 4 . . 6 . 11 2 . Slashing . | . . . . . . . . . . . Piercing . | . . . . . . . . . . . Sneak Attacks 4 | . . . 1 . . 2 . 1 . . Combat Hostiles . | . . . . . . . . . . . Follow-up Attacks . | . . . . . . . . . . . Damage Inflicted 8454 | . 1089 2036 2001 1930 . 417 . 706 275 . Guns 3742 | . 767 443 1736 796 . . . . . . Cannons 1939 | . 17 788 . 1134 . . . . . . Explosions 1995 | . 293 793 235 . . . . 399 275 . Melee 754 | . . . 30 . . 417 . 307 . . Ramming 24 | . 12 12 . . . . . . . . Kinetic 3424 | . 756 443 909 1316 . . . . . . Thermal 2257 | . 28 788 827 614 . . . . . . Explosive 1995 | . 293 793 235 . . . . 399 275 . Electromagnetic . | . . . . . . . . . . . Impact 754 | . . . 30 . . 417 . 307 . . Slashing . | . . . . . . . . . . . Piercing . | . . . . . . . . . . . Highest Corruption 6 | . . . . . . 2 2 6 6 6 Average Corruption 5 | . . . . . . 2 2 5 6 6 Corruption Purged . | . . . . . . . . . . . Corruption Blocked . | . . . . . . . . . . . Effects 12 | . . . . . . . . 6 5 1 Message Errors 2 | . . . . . . . . 1 1 . Matter Fused 5 | . . . . . . . . 2 2 1 Heat Flow Errors 1 | . . . . . . . . 1 . . Energy Discharges 1 | . . . . . . . . . 1 . Data Loss (minor) 3 | . . . . . . . . 2 1 . Overload Shots . | . . . . . . . . . . . Overflow Damage 361 | . 50 20 . 4 . 164 . 118 5 . Projectiles 10 | . . 6 . 4 . . . . . . Explosions 99 | . 50 14 . . . . . 30 5 . Melee 252 | . . . . . . 164 . 88 . . Knockbacks 8 | . . . . 8 . . . . . . Impact . | . . . . . . . . . . . Kinetic 7 | . . . . 7 . . . . . . Secondary 1 | . . . . 1 . . . . . . Self-Inflicted Damage 88 | . . 56 28 . . . . 4 . . Shots 4 | . . 2 1 . . . . 1 . . Rammed 3 | . 1 2 . . . . . . . . Targets Rammed 4 | . 2 2 . . . . . . . . Kicked . | . . . . . . . . . . . Crushed 1 | . 1 . . . . . . . . . Highest Temperature 324 | . 40 147 106 324 . . . 128 34 5 Average Temperature 40 | . 11 45 21 66 . . . 44 17 5 Received Heat Transfer 1261 | . 186 165 261 513 . . . 42 76 18 Effects 2 | . . . . 2 . . . . . . Interference 2 | . . . . 2 . . . . . . Siege Activations . | . . . . . . . . . . . Robots Corrupted . | . . . . . . . . . . . Combat Hostiles . | . . . . . . . . . . . Parts Fried 1 | . . . . . . 1 . . . . Impact Corruptions 7 | . . . . . . 5 . 2 . . Robots Melted . | . . . . . . . . . . . Combat Hostiles . | . . . . . . . . . . . Parts Melted 7 | . . 1 4 2 . . . . . . Heat Transferred 5427 | . 62 1628 2072 1665 . . . . . . Parts Sabotaged . | . . . . . . . . . . . Parts Stolen . | . . . . . . . . . . . Parts Stripped . | . . . . . . . . . . . Power Chain Reactions . | . . . . . . . . . . . Missiles Intercepted . | . . . . . . . . . . . Alert | -11 -10 -9 -9 -8 -7 -6 -6 -6 -6 -6 ------- Run | Yrd Mat Mat Sto Mat Fac Fac Was Fac Low Low Peak Influence 600 | . 233 553 600 323 102 92 77 385 . . Initial 228 | . . 50 228 86 102 49 32 53 . . Average 221 | . 59 281 344 161 102 69 53 173 . . Maximum Alert Level 2 | . 1 2 2 1 . . . 1 . . Low Security (%) 44 | 100 94 21 . 72 100 100 100 56 . . Level 1 45 | . 5 55 80 27 . . . 43 . . Level 2 10 | . . 22 19 . . . . . . . Level 3 . | . . . . . . . . . . . Level 4 . | . . . . . . . . . . . Level 5 . | . . . . . . . . . . . High Security . | . . . . . . . . . . . Max Security . | . . . . . . . . . . . Squads Dispatched 13 | . 1 4 4 1 . 1 . 2 . . Investigation 4 | . . 2 1 . . 1 . . . . Extermination . | . . . . . . . . . . . Reinforcement 8 | . 1 2 2 1 . . . 2 . . Assault . | . . . . . . . . . . . Garrison 1 | . . . 1 . . . . . . . Intercept . | . . . . . . . . . . . Searches Triggered . | . . . . . . . . . . . Construction Impeded 1 | . . 1 . . . . . . . . Haulers Reinforced . | . . . . . . . . . . . Active Scanning Responses . | . . . . . . . . . . . Cargo Convoy Interrupts . | . . . . . . . . . . . Stealth | -11 -10 -9 -9 -8 -7 -6 -6 -6 -6 -6 --------- Run | Yrd Mat Mat Sto Mat Fac Fac Was Fac Low Low Distress Signals 8 | . 2 1 1 4 . . . . . . Communications Jammed . | . . . . . . . . . . . Distress Signals . | . . . . . . . . . . . Times Spotted 163 | . 24 34 28 33 3 1 6 13 17 4 Peak Tracking Total 9 | . 6 9 5 4 3 1 6 6 6 4 Tactical Retreats 16 | . 1 4 . 2 . . . 3 5 1 Traps | -11 -10 -9 -9 -8 -7 -6 -6 -6 -6 -6 ------- Run | Yrd Mat Mat Sto Mat Fac Fac Was Fac Low Low Traps Triggered 14 | . 1 5 2 3 1 2 . . . . Indirectly . | . . . . . . . . . . . Trap Hack Attempts . | . . . . . . . . . . . Triggered . | . . . . . . . . . . . Disarmed . | . . . . . . . . . . . Reprogrammed . | . . . . . . . . . . . Reused . | . . . . . . . . . . . Traps Extracted . | . . . . . . . . . . . Installed . | . . . . . . . . . . . Triggered . | . . . . . . . . . . . Machines | -11 -10 -9 -9 -8 -7 -6 -6 -6 -6 -6 ---------- Run | Yrd Mat Mat Sto Mat Fac Fac Was Fac Low Low Machines Disabled 8 | . . 3 3 1 . . . 1 . . Max in Single Turn 1 | . . 1 1 1 . . . 1 . . Garrison Access 1 | . . . 1 . . . . . . . Machines Repaired . | . . . . . . . . . . . Machines Dismantled 3 | . . . 3 . . . . . . . Machines Sabotaged . | . . . . . . . . . . . Overloaded Fab Kills . | . . . . . . . . . . . Hacking | -11 -10 -9 -9 -8 -7 -6 -6 -6 -6 -6 --------- Run | Yrd Mat Mat Sto Mat Fac Fac Was Fac Low Low Machines Accessed 22 | . 2 6 7 2 . 3 . 2 . . Terminals 15 | . 1 4 5 2 . 2 . 1 . . Fabricators . | . . . . . . . . . . . Repair Stations . | . . . . . . . . . . . Recycling Units 4 | . 1 . 1 . . 1 . 1 . . Scanalyzers 2 | . . 2 . . . . . . . . Garrison Access 1 | . . . 1 . . . . . . . Total Hacks 50 | . 7 16 13 4 . 7 . 3 . . Successful 29 | . 3 12 7 3 . 2 . 2 . . Failed 21 | . 4 4 6 1 . 5 . 1 . . Catastrophic 3 | . . 1 2 . . . . . . . Database Lockouts . | . . . . . . . . . . . Manual 26 | . 2 8 8 2 . 5 . 1 . . Terminals 30 | . 2 8 10 4 . 5 . 1 . . Fabricators . | . . . . . . . . . . . Repair Stations . | . . . . . . . . . . . Recycling Units 10 | . 5 . 1 . . 2 . 2 . . Scanalyzers 8 | . . 8 . . . . . . . . Garrison Access 2 | . . . 2 . . . . . . . Terminal Hacks 16 | . 2 4 5 3 . 1 . 1 . . Robot Analysis 4 | . 2 1 . 1 . . . . . . Branch Access Points 3 | . . 1 . . . 1 . 1 . . Alert Level 2 | . . . 1 1 . . . . . . Unreport Threat 1 | . . . 1 . . . . . . . Hauler Manifests 3 | . . 1 1 1 . . . . . . Zone Layout 3 | . . 1 2 . . . . . . . Fabricator Hacks . | . . . . . . . . . . . Repair Station Hacks . | . . . . . . . . . . . Recycling Unit Hacks 4 | . 1 . 1 . . 1 . 1 . . Retrieve Components 4 | . 1 . 1 . . 1 . 1 . . Scanalyzer 8 | . . 8 . . . . . . . . Insert Component 4 | . . 4 . . . . . . . . Analyze 4 | . . 4 . . . . . . . . Garrison Access Hacks 1 | . . . 1 . . . . . . . Seal Access 1 | . . . 1 . . . . . . . Unauthorized Hacks . | . . . . . . . . . . . Terminals . | . . . . . . . . . . . Fabricators . | . . . . . . . . . . . Repair Stations . | . . . . . . . . . . . Recycling Units . | . . . . . . . . . . . Scanalyzers . | . . . . . . . . . . . Garrison Access . | . . . . . . . . . . . Data Cores Recovered 1 | . 1 . . . . . . . . . Used . | . . . . . . . . . . . Hacking Detections 15 | . 2 5 5 1 . 2 . . . . Full Trace Events 2 | . . 1 . . . 1 . . . . Feedback Events . | . . . . . . . . . . . Feedback Blocked . | . . . . . . . . . . . Robot Schematics Acquired . | . . . . . . . . . . . Robots Built . | . . . . . . . . . . . Authchips . | . . . . . . . . . . . Time . | . . . . . . . . . . . Total Robot Build Rating . | . . . . . . . . . . . Part Schematics Acquired 4 | . . 4 . . . . . . . . Parts Built . | . . . . . . . . . . . Authchips . | . . . . . . . . . . . Time . | . . . . . . . . . . . Total Part Build Rating . | . . . . . . . . . . . Parts Repaired . | . . . . . . . . . . . Time . | . . . . . . . . . . . Parts Recycled . | . . . . . . . . . . . Recycled Matter . | . . . . . . . . . . . Retrieved Matter . | . . . . . . . . . . . Retrieved Components 22 | . 9 . 10 . . . . 3 . . Parts Scanalyzed 4 | . . 4 . . . . . . . . Part Schematics Acquired 4 | . . 4 . . . . . . . . Parts Damaged . | . . . . . . . . . . . Bothacking | -11 -10 -9 -9 -8 -7 -6 -6 -6 -6 -6 ------------ Run | Yrd Mat Mat Sto Mat Fac Fac Was Fac Low Low Used RIF Installer . | . . . . . . . . . . . Robots Hacked . | . . . . . . . . . . . Non-combat . | . . . . . . . . . . . Combat . | . . . . . . . . . . . Robot Hacks Applied . | . . . . . . . . . . . Relay Couplers Released . | . . . . . . . . . . . Fabnet Peak Effective % . | . . . . . . . . . . . Robots Rewired . | . . . . . . . . . . . Allies Hacked . | . . . . . . . . . . . Hacks Repelled . | . . . . . . . . . . . Allies | -11 -10 -9 -9 -8 -7 -6 -6 -6 -6 -6 -------- Run | Yrd Mat Mat Sto Mat Fac Fac Was Fac Low Low Total Allies 10 | . . . 10 . . . . . . . Largest Group 10 | . . . 10 . . . . . . . Highest-Rated Group 88 | . . . 88 . . . . . . . Highest-Rated Ally 16 | . . . 16 . . . . . . . Total Orders 2 | . . . 2 . . . . . . . STAY 1 | . . . 1 . . . . . . . FOLLOW 1 | . . . 1 . . . . . . . Ally Attacks 27 | . . . 27 . . . . . . . Total Damage 262 | . . . 262 . . . . . . . Kills 5 | . . . 5 . . . . . . . Allies Corrupted . | . . . . . . . . . . . Allies Melted . | . . . . . . . . . . . Intel | -11 -10 -9 -9 -8 -7 -6 -6 -6 -6 -6 ------- Run | Yrd Mat Mat Sto Mat Fac Fac Was Fac Low Low Robot Analysis Total 4 | . 2 1 . 1 . . . . . . Derelict Logs Recovered 3 | . . . . . . . . . 2 1 Drone Launches . | . . . . . . . . . . . Drone Recoveries . | . . . . . . . . . . . Exploration | -11 -10 -9 -9 -8 -7 -6 -6 -6 -6 -6 ------------- Run | Yrd Mat Mat Sto Mat Fac Fac Was Fac Low Low Turns Passed 6322 | 66 1067 1045 2075 1350 119 157 22 183 209 29 Spaces Moved 4239 | 41 443 481 776 449 179 494 81 495 702 98 Core 13 | 13 . . . . . . . . . . Treads 2187 | 28 443 481 776 449 10 . . . . . Legs . | . . . . . . . . . . . Wheels . | . . . . . . . . . . . Hover . | . . . . . . . . . . . Flight 2039 | . . . . . 169 494 81 495 702 98 Fastest Speed 26 | 50 160 160 160 240 28 26 26 26 26 29 Average Speed 117 | 125 183 160 219 241 39 26 26 26 26 29 Slowest Speed 245 | 160 240 240 240 245 241 28 26 26 29 29 Overloaded Moves . | . . . . . . . . . . . Propulsion Burnouts . | . . . . . . . . . . . Robots Hopped 9 | . . . . . 1 3 . 4 1 . Cave-ins Triggered . | . . . . . . . . . . . Exploration Rate (%) 41 | 5 70 44 87 45 4 14 59 17 82 25 Regions Visited 10 Branch Regions 3 Pre-discovered Areas 1 | . . . . . . . . . . 1 Known Exits Taken 2 | . . 1 . . . . . 1 . . Unknown Exits Taken 6 | 1 1 . 1 1 1 . . . 1 . Scrap Searched 6 | . . . . . . . . . 6 . Spaces Dug 10 | . . 1 . . . 1 . 6 2 . Terrain Destroyed 162 | . 25 56 25 12 . 1 . 27 16 . Melee 10 | . . 1 . . . 1 . 6 2 . Projectile 12 | . . . . 12 . . . . . . AOE 140 | . 25 55 25 . . . . 21 14 . Terrain Rammed . | . . . . . . . . . . . Walls Destroyed . | . . . . . . . . . . . Machines Disabled . | . . . . . . . . . . . Actions | -11 -10 -9 -9 -8 -7 -6 -6 -6 -6 -6 --------- Run | Yrd Mat Mat Sto Mat Fac Fac Was Fac Low Low Total 4952 | 55 586 627 949 588 228 507 81 517 716 98 Wait 119 | . 45 27 25 20 . 1 1 . . . Move 4212 | 40 442 480 775 448 176 488 80 486 699 98 Hop 9 | . . . . . 1 3 . 4 1 . Pick Up 78 | 9 16 10 13 12 10 3 . 2 3 . Fast Attach 27 | . 1 6 7 7 2 1 . 2 1 . Attach 37 | 5 3 7 3 6 7 3 . 1 2 . Detach 5 | . . . 1 . . 1 . 1 2 . Swap 38 | 1 4 9 12 8 2 . . 2 . . Drop 55 | . 4 7 11 13 12 1 . 3 4 . Fire 304 | . 69 78 77 73 . . . 5 2 . Melee 24 | . . 1 4 . . 6 . 11 2 . Ram . | . . . . . . . . . . . Kick . | . . . . . . . . . . . Crush 4 | . 2 2 . . . . . . . . Escape Stasis 18 | . . . . . 18 . . . . . Rewire . | . . . . . . . . . . . Trap . | . . . . . . . . . . . Miscellaneous 22 | . . . 21 1 . . . . . . Route ------- -11/Scrapyard -10/Materials (discovered 3 exits: *Mat x2 / [*Min]) -9/Materials (discovered 3 exits: *Min x2 / *Sto) -9/Storage (discovered 2 exits: *Mat / [*Rec]) -8/Materials (discovered 2 exits: [*Fac x2]) -7/Factory -6/Factory (discovered 2 exits: Low x2) -6/Waste -6/Factory (discovered 2 exits: *Low x2) -6/Lower Caves -6/Lower Caves History --------- Turn | Location | Event 4 | -11/Scrapyard | Discovered new exit (range 16) 67 | -11/Scrapyard | Entered Materials 153 | -10/Materials | Discovered new exit (range 9) 337 | -10/Materials | Build established: Mutant 540 | -10/Materials | Discovered new exit (range 14) 913 | -10/Materials | Discovered new exit (range 15) 1134 | -10/Materials | Entered another Materials area 1134 | -9/Materials | Evolved 2 slots: Propulsion x1, Utility x1 1866 | -9/Materials | Identified exit to Mines 1866 | -9/Materials | Identified exit to Storage 2127 | -9/Materials | Lost 3 parts (2n1w) 2179 | -9/Materials | Entered Storage 2409 | -9/Storage | Garrison activated, responded to threat 2827 | -9/Storage | Assisted by bots powering up and referring to "LRC-V3" 3025 | -9/Storage | Lost 6 allies 3285 | -9/Storage | Build established: Scavenger-Mutant 3990 | -9/Storage | Discovered new exit (range 3) 4218 | -9/Storage | Discovered new exit (range 15) 4254 | -9/Storage | Entered Materials 4254 | -8/Materials | Evolved 2 slots: Propulsion x1, Utility x1 4682 | -8/Materials | Discovered new exit (range 8) 5479 | -8/Materials | Discovered new exit (range 14) 5604 | -8/Materials | Entered Factory 5604 | -7/Factory | Evolved 2 slots: Propulsion x1, Utility x1 5676 | -7/Factory | Discovered new exit (range 15) 5723 | -7/Factory | Entered another Factory area 5723 | -6/Factory | Evolved 2 slots: Propulsion x1, Utility x1 5859 | -6/Factory | Identified exit to Lower Caves 5880 | -6/Factory | Manually triggered Chute Trap 5880 | -6/Factory | Sucked down chute 5880 | -6/Factory | Entered Waste 5885 | -6/Waste | Spotted C-40 Crusher 5886 | -6/Waste | Spotted C-40 Crusher 5887 | -6/Waste | Spotted C-40 Crusher 5890 | -6/Waste | Spotted C-40 Crusher 5892 | -6/Waste | Spotted C-40 Crusher 5894 | -6/Waste | Discovered new exit (range 15) 5894 | -6/Waste | Spotted C-40 Crusher 5902 | -6/Waste | Entered Factory 5965 | -6/Factory | Build established: Hacker-Sprinter 6085 | -6/Factory | Entered Lower Caves 6092 | -6/Lower Caves | Learned Factory stockpile data 6160 | -6/Lower Caves | Spotted B-75 Beast 6172 | -6/Lower Caves | Encountered a Warlord checkpoint 6291 | -6/Lower Caves | Discovered new exit (range 11) 6294 | -6/Lower Caves | Entered another Lower Caves area 6323 | -6/Lower Caves | Self-destructed Last Messages --------------- 06196_ Dropped Reaction Control System. 06197_ Acquired Imp. Hacking Suite. 06205_ KZFJ>G>QGKCEIVNF :5RHZCQHJ>5OVCLPBLQAK1 06219_ Searching scrap... 06219_ Found Flexi-carbon Leg. 06219_ Found 28 Matter. 06232_ System corrupted: Component data lost. 06255_ Critical hit (Burn: +50). 06260_ Lgt. Nuclear Core destroyed. 06261_ Acquired 40 matter. 06268_ System corrupted: Matter fused (-7). 06268_ Acquired 7 matter. 06275_ Nuclear Pulse Thruster destroyed. 06279_ Knocked back. 06291_ EXIT=FOUND LOCATION=UNKNOWN GOAL=ESCAPE 06310_ Acquired derelict log, extracted data. World map updated: -7/Zion. 06311_ System corrupted: Matter fused (-8). Map ----- +----------------------------------------------------+ | ?????????????????????????????????????????????????? | | ?????????????????????????????????????????????????? | | ?????????????????????????????????????????????????? | | ?????????????????????????????????????????????????? | | ?????????????????????????????????????????????????? | | ?????????????????????????????????????????????????? | | ?????????????????????????????????????????????????? | | ?????????????????????????????????????????????????# | | ?????????????????????????????????????????????????# | | ?????????????????????????????????????????????????# | | ?????????????????????????????????????????????????# | | ?????????????????? ???#??????????????????????????# | | ?????????????????? ??# ????????????????????????## | | ??????????????????? ## #??????????????????????## | | ???????????????????? ?????????????????????# | | ????????????????????? ?????????????????????# | | ?????????????????????? ??????????????????### | | ??????????????????????? ????????????####??# | | ???????????????????????? ????????#### #??# | | ?????????????????????????# ???????## ##?# | | ??????????????????????????# ?????## ### | | ???????????????????????????# ###### | | ??????????????????########### ## | | ??????????????????# ##? | | ??????????????????# "" ## ##?? | | ??????????????????# """"@" #### ##??? | | ??????????????????# "" "" ##??# ## #???? | | ??????????????????# """ #???# ### #??? | | ??????????????????# " " """ #???## ##?## ##??? | | ????????????????? " "" #????####???# #???? | | ????????????????### "" ???????????# #??? | | ??????????????????# ##### ??????????# ?? | | ??????????????????# ????## ## ?????????# #? | | ??????????????????#??????## ?? ??????????# #? | | ??????????????????????????# ????????????? ? | | ?????????????????????????? ????????????? | | ?????????????????????????? ????????????? ? | | ???????????????????????????#????????????? ??? | | ?????????????????????????????????????????? ????? | | ?????????????????????????????????????????????????? | | ?????????????????????????????????????????????????? | | ?????????????????????????????????????????????????? | | ?????????????????????????????????????????????????? | | ?????????????????????????????????????????????????? | | ?????????????????????????????????????????????????? | | ?????????????????????????????????????????????????? | | ?????????????????????????????????????????????????? | | ?????????????????????????????????????????????????? | | ?????????????????????????????????????????????????? | | ?????????????????????????????????????????????????? | +----------------------------------------------------+ Best States ------------- Heat Dissipation 53 Energy Generation 15 Energy Capacity 280 Matter Stores 500 Matter Capacity 500 Sight Range 16 Terrain Scan Density 10 Armor Coverage 225 Resistance: KI 30 Utility Shielding 66 Evasion (%) 64 Recoil Reduction 4 Offensive Hacking 20 Item Schematics ----------------- Lgt. Nuclear Core | -9/Materials | Scanalyzed Med. Storage Unit | -9/Materials | Scanalyzed Structural Scanner | -9/Materials | Scanalyzed Hacking Suite | -9/Materials | Scanalyzed Robot Schematics ------------------ None Fabricated ------------ Nothing Alien Tech Used ----------------- None Achievements -------------- None Challenges ------------ None Game ------ Seed AnalysisThunderMatter Manual? 0 Play Time 00:41:52 Cumulative 133.9 hours Start 2023.12.24 @ 21:46:43 End 2023.12.24 @ 22:31:31 Sessions 1 Manual Loads 0 Difficulty Rogue Special Mode None Game No. 151 Rogue 115 Adventurer 36 Explorer 0 Win Type - Total 8 Types 2/0/6/0/0/0/0/0/0 Lore% 54 Gallery% 77 Achievement% 64 Wizard Run 0 Options --------- ASCII 0 Keyboard 0 Movement Mouse Keybinds 0 Fullscreen 1 Font 18/SmallcapsGlow Map View 76x50 Zoom Use 0% Tactical HUD 1 Map Filters NONE Filters NONE Steam 1 RUN: 5382b16e-0399-476b-a658-92af4df2c6f0